[Event "Late-Titled-Tuesday-Blitz-October-24-2023"]
[Site "Chess.com"]
[Date "2023.10.24"]
[Round "8"]
[White "Likvidator228"]
[Black "lluiss"]
[Result "1-0"]
[WhiteElo "2565"]
[BlackElo "2213"]
[TimeControl "180+1"]
[EndTime "15:24:36 PDT"]
[Termination "Likvidator228 won on time"]

1. g4 {[%clk 0:02:57.9]} 1... d5 {[%clk 0:02:57.8]} 2. Bg2 {[%clk 0:02:57.9]}
2... c6 {[%clk 0:02:58]} 3. h3 {[%clk 0:02:56.5]} 3... e5 {[%clk 0:02:55.1]} 4.
d4 {[%clk 0:02:57.1]} 4... e4 {[%clk 0:02:54.1]} 5. c4 {[%clk 0:02:57.1]} 5...
f5 {[%clk 0:02:22.3]} 6. gxf5 {[%clk 0:02:56.9]} 6... Bxf5 {[%clk 0:02:21.2]} 7.
Nc3 {[%clk 0:02:56.8]} 7... Nf6 {[%clk 0:02:17.4]} 8. cxd5 {[%clk 0:02:56]} 8...
cxd5 {[%clk 0:02:15.2]} 9. Qb3 {[%clk 0:02:56.5]} 9... Qd7 {[%clk 0:02:13.2]}
10. Bg5 {[%clk 0:02:52.9]} 10... Nc6 {[%clk 0:02:09.3]} 11. Bxf6 {[%clk
0:02:49.6]} 11... gxf6 {[%clk 0:02:08.6]} 12. Qxd5 {[%clk 0:02:50.2]} 12... Qxd5
{[%clk 0:01:59.3]} 13. Nxd5 {[%clk 0:02:50.3]} 13... O-O-O {[%clk 0:01:58.9]}
14. Nxf6 {[%clk 0:02:42.1]} 14... Bb4+ {[%clk 0:01:56.4]} 15. Kf1 {[%clk
0:02:42]} 15... Rxd4 {[%clk 0:01:48.8]} 16. a3 {[%clk 0:02:30.9]} 16... Be7
{[%clk 0:01:45.1]} 17. Ng4 {[%clk 0:02:31.2]} 17... Rhd8 {[%clk 0:01:33.9]} 18.
Re1 {[%clk 0:02:22.8]} 18... Rd2 {[%clk 0:01:30.2]} 19. Ne3 {[%clk 0:02:22.9]}
19... Bg6 {[%clk 0:01:27.5]} 20. h4 {[%clk 0:02:21.8]} 20... Bc5 {[%clk
0:01:14.5]} 21. h5 {[%clk 0:02:10.2]} 21... Bxe3 {[%clk 0:00:53.1]} 22. hxg6
{[%clk 0:02:09.8]} 22... Rf8 {[%clk 0:00:53.2]} 23. Nh3 {[%clk 0:01:57.4]} 23...
Bxf2 {[%clk 0:00:47.5]} 24. Nxf2 {[%clk 0:01:55.3]} 24... e3 {[%clk 0:00:40.7]}
25. gxh7 {[%clk 0:01:51.3]} 25... Rh8 {[%clk 0:00:19.4]} 26. Nd3 {[%clk
0:01:46.5]} 26... Nd4 {[%clk 0:00:15.6]} 27. Be4 {[%clk 0:01:37.7]} 27... Rf8+
{[%clk 0:00:08.7]} 28. Kg1 {[%clk 0:01:36.1]} 28... Nxe2+ {[%clk 0:00:08.4]} 29.
Rxe2 {[%clk 0:01:36.4]} 1-0

[Event "Late-Titled-Tuesday-Blitz-October-24-2023"]
[Site "Chess.com"]
[Date "2023.10.24"]
[Round "8"]
[White "zajka-molotok"]
[Black "gahryman"]
[Result "0-1"]
[WhiteElo "2544"]
[BlackElo "2678"]
[TimeControl "180+1"]
[EndTime "15:24:44 PDT"]
[Termination "gahryman won by resignation"]

1. e4 {[%clk 0:03:00.9]} 1... c5 {[%clk 0:02:58.8]} 2. Nf3 {[%clk 0:03:00.4]}
2... Nc6 {[%clk 0:02:58.9]} 3. Bb5 {[%clk 0:02:59.6]} 3... d6 {[%clk 0:02:58]}
4. O-O {[%clk 0:02:56.4]} 4... Bd7 {[%clk 0:02:58.3]} 5. c3 {[%clk 0:02:55.5]}
5... a6 {[%clk 0:02:57.3]} 6. Bc4 {[%clk 0:02:52.5]} 6... Nf6 {[%clk 0:02:56.3]}
7. Re1 {[%clk 0:02:51.1]} 7... Bg4 {[%clk 0:02:47.8]} 8. d4 {[%clk 0:02:44.9]}
8... Bxf3 {[%clk 0:02:44.4]} 9. gxf3 {[%clk 0:02:44.6]} 9... cxd4 {[%clk
0:02:34.6]} 10. cxd4 {[%clk 0:02:45.5]} 10... e5 {[%clk 0:02:35.1]} 11. d5
{[%clk 0:02:40.3]} 11... Nd4 {[%clk 0:02:20.7]} 12. Be3 {[%clk 0:02:38.7]} 12...
Be7 {[%clk 0:02:14.5]} 13. Nd2 {[%clk 0:02:18.3]} 13... Nh5 {[%clk 0:02:06.6]}
14. Bxd4 {[%clk 0:02:12.5]} 14... exd4 {[%clk 0:02:06.6]} 15. Nb3 {[%clk
0:02:12.1]} 15... O-O {[%clk 0:01:44.6]} 16. Nxd4 {[%clk 0:02:11.4]} 16... Bf6
{[%clk 0:01:44.8]} 17. Qd2 {[%clk 0:02:05.5]} 17... Be5 {[%clk 0:01:41]} 18. Ne2
{[%clk 0:01:56.6]} 18... Qh4 {[%clk 0:01:35.4]} 19. Ng3 {[%clk 0:01:55.9]} 19...
Nf4 {[%clk 0:01:33.4]} 20. Bf1 {[%clk 0:01:51.7]} 20... g6 {[%clk 0:01:30.4]}
21. Qb4 {[%clk 0:01:40.4]} 21... Qf6 {[%clk 0:01:25]} 22. Rab1 {[%clk
0:01:32.2]} 22... h5 {[%clk 0:01:24.6]} 23. Qd2 {[%clk 0:01:08.5]} 23... Rac8
{[%clk 0:01:05]} 24. Rec1 {[%clk 0:01:05.1]} 24... h4 {[%clk 0:00:50.7]} 25. Ne2
{[%clk 0:01:01.5]} 25... Nxe2+ {[%clk 0:00:51]} 26. Bxe2 {[%clk 0:00:49]} 26...
Bf4 {[%clk 0:00:50.9]} 27. Qd1 {[%clk 0:00:43.7]} 27... Rxc1 {[%clk 0:00:49]}
28. Rxc1 {[%clk 0:00:44.6]} 28... Qg5+ {[%clk 0:00:49.4]} 29. Kh1 {[%clk
0:00:43.7]} 29... Bxc1 {[%clk 0:00:49.5]} 0-1

[Event "Late-Titled-Tuesday-Blitz-October-24-2023"]
[Site "Chess.com"]
[Date "2023.10.24"]
[Round "8"]
[White "szachmistrz2500"]
[Black "AsselLesbekova"]
[Result "1-0"]
[WhiteElo "2426"]
[BlackElo "2298"]
[TimeControl "180+1"]
[EndTime "15:24:44 PDT"]
[Termination "szachmistrz2500 won by checkmate"]

1. Nf3 {[%clk 0:03:00.9]} 1... d5 {[%clk 0:02:59.5]} 2. g3 {[%clk 0:03:01.1]}
2... e6 {[%clk 0:02:58.7]} 3. Bg2 {[%clk 0:03:01.2]} 3... Nf6 {[%clk 0:02:57.4]}
4. O-O {[%clk 0:03:01.7]} 4... a6 {[%clk 0:02:57.3]} 5. d3 {[%clk 0:03:02.2]}
5... c5 {[%clk 0:02:55.2]} 6. Nbd2 {[%clk 0:03:02.2]} 6... Nc6 {[%clk 0:02:53]}
7. e4 {[%clk 0:03:02.2]} 7... dxe4 {[%clk 0:02:53.1]} 8. dxe4 {[%clk 0:03:01.8]}
8... Be7 {[%clk 0:02:53.4]} 9. c3 {[%clk 0:03:01.9]} 9... O-O {[%clk 0:02:52.8]}
10. Qe2 {[%clk 0:03:01.6]} 10... Qc7 {[%clk 0:02:47.2]} 11. e5 {[%clk
0:02:57.9]} 11... Nd7 {[%clk 0:02:37.2]} 12. Re1 {[%clk 0:02:57.5]} 12... b5
{[%clk 0:02:35]} 13. h4 {[%clk 0:02:53.4]} 13... Bb7 {[%clk 0:02:31.8]} 14. h5
{[%clk 0:02:53.5]} 14... h6 {[%clk 0:02:28.8]} 15. Nf1 {[%clk 0:02:53.2]} 15...
Rfd8 {[%clk 0:02:24.1]} 16. N1h2 {[%clk 0:02:51.9]} 16... b4 {[%clk 0:02:18.7]}
17. Ng4 {[%clk 0:02:51.3]} 17... Bf8 {[%clk 0:02:10.7]} 18. Bf4 {[%clk
0:02:49.5]} 18... bxc3 {[%clk 0:02:05.8]} 19. bxc3 {[%clk 0:02:49.1]} 19... Nb6
{[%clk 0:02:05.6]} 20. c4 {[%clk 0:02:45]} 20... Nd4 {[%clk 0:02:00]} 21. Nxd4
{[%clk 0:02:45]} 21... cxd4 {[%clk 0:01:53.7]} 22. c5 {[%clk 0:02:38.8]} 22...
Bxc5 {[%clk 0:01:44.6]} 23. Bxh6 {[%clk 0:02:33.1]} 23... gxh6 {[%clk
0:01:30.5]} 24. Nxh6+ {[%clk 0:02:31.9]} 24... Kh7 {[%clk 0:01:29.5]} 25. Ng4
{[%clk 0:02:29.4]} 25... Be7 {[%clk 0:01:16.4]} 26. Be4+ {[%clk 0:02:26.2]}
26... Bxe4 {[%clk 0:01:13.2]} 27. Qxe4+ {[%clk 0:02:26.3]} 27... Kh8 {[%clk
0:01:07.9]} 28. Rac1 {[%clk 0:02:25.1]} 28... Qd7 {[%clk 0:01:01.8]} 29. Qf4
{[%clk 0:02:25.4]} 29... Bf8 {[%clk 0:00:57.1]} 30. Nf6 {[%clk 0:02:22.7]} 30...
Nd5 {[%clk 0:00:50.7]} 31. Qg5 {[%clk 0:02:15.7]} 31... Nxf6 {[%clk 0:00:48.5]}
32. exf6 {[%clk 0:02:16]} 32... Qd5 {[%clk 0:00:45.2]} 33. Re5 {[%clk
0:02:15.9]} 33... Qf3 {[%clk 0:00:32.8]} 34. Rc7 {[%clk 0:02:08.3]} 34... d3
{[%clk 0:00:08.3]} 35. Re3 {[%clk 0:02:01.3]} 35... Qd1+ {[%clk 0:00:05]} 36.
Kg2 {[%clk 0:01:57.9]} 36... Qa4 {[%clk 0:00:05.5]} 37. Rxf7 {[%clk 0:01:51.3]}
37... Qa3 {[%clk 0:00:06]} 38. Qg6 {[%clk 0:01:47.8]} 38... d2 {[%clk
0:00:05.4]} 39. Qh7# {[%clk 0:01:47.6]} 1-0

[Event "Late-Titled-Tuesday-Blitz-October-24-2023"]
[Site "Chess.com"]
[Date "2023.10.24"]
[Round "8"]
[White "baag"]
[Black "chesspreceptor"]
[Result "1-0"]
[WhiteElo "2864"]
[BlackElo "2628"]
[TimeControl "180+1"]
[EndTime "15:24:57 PDT"]
[Termination "baag won by resignation"]

1. d4 {[%clk 0:03:00.9]} 1... c5 {[%clk 0:02:59.5]} 2. d5 {[%clk 0:03:01.2]}
2... f5 {[%clk 0:02:58.6]} 3. c4 {[%clk 0:02:52.6]} 3... Nf6 {[%clk 0:02:58.9]}
4. Nc3 {[%clk 0:02:53.4]} 4... g6 {[%clk 0:02:58]} 5. g3 {[%clk 0:02:51]} 5...
d6 {[%clk 0:02:57.4]} 6. Bg2 {[%clk 0:02:51.4]} 6... Bg7 {[%clk 0:02:58]} 7. Nf3
{[%clk 0:02:51.8]} 7... Na6 {[%clk 0:02:58.2]} 8. O-O {[%clk 0:02:52.2]} 8...
O-O {[%clk 0:02:57.8]} 9. Qc2 {[%clk 0:02:44.1]} 9... Nc7 {[%clk 0:02:57.3]} 10.
Rd1 {[%clk 0:02:38.5]} 10... a6 {[%clk 0:02:53.5]} 11. a4 {[%clk 0:02:38.4]}
11... b6 {[%clk 0:02:52.7]} 12. Rb1 {[%clk 0:01:59.5]} 12... Bd7 {[%clk
0:02:49.5]} 13. b4 {[%clk 0:01:59.3]} 13... cxb4 {[%clk 0:02:38.9]} 14. Rxb4
{[%clk 0:02:00.2]} 14... Rb8 {[%clk 0:02:39.2]} 15. Nd4 {[%clk 0:01:48.5]} 15...
a5 {[%clk 0:02:00.3]} 16. Rb1 {[%clk 0:01:42.1]} 16... Na6 {[%clk 0:02:00.3]}
17. Ba3 {[%clk 0:01:20.2]} 17... Qc7 {[%clk 0:01:49.2]} 18. Nc6 {[%clk
0:01:18.3]} 18... Rbe8 {[%clk 0:01:44.7]} 19. Qb3 {[%clk 0:01:01.1]} 19... Bxc6
{[%clk 0:01:01.3]} 20. dxc6 {[%clk 0:01:02]} 20... Rb8 {[%clk 0:01:00.4]} 21.
c5+ {[%clk 0:00:58.5]} 21... Kh8 {[%clk 0:00:58.9]} 22. cxb6 {[%clk 0:00:58.3]}
22... Qc8 {[%clk 0:00:59.3]} 23. b7 {[%clk 0:00:51.4]} 23... Qd8 {[%clk
0:00:56.7]} 24. Qb6 {[%clk 0:00:45.3]} 24... Nc7 {[%clk 0:00:56.1]} 25. Nb5
{[%clk 0:00:40.8]} 25... Nfe8 {[%clk 0:00:54.8]} 26. Qxa5 {[%clk 0:00:32.1]}
26... f4 {[%clk 0:00:52.8]} 27. Qb6 {[%clk 0:00:28.5]} 27... fxg3 {[%clk
0:00:52.3]} 28. hxg3 {[%clk 0:00:29.3]} 1-0

[Event "Late-Titled-Tuesday-Blitz-October-24-2023"]
[Site "Chess.com"]
[Date "2023.10.24"]
[Round "8"]
[White "KNVB"]
[Black "SpeedofLight0"]
[Result "0-1"]
[WhiteElo "2684"]
[BlackElo "2978"]
[TimeControl "180+1"]
[EndTime "15:25:00 PDT"]
[Termination "SpeedofLight0 won on time"]

1. d4 {[%clk 0:03:00.9]} 1... Nf6 {[%clk 0:03:00.1]} 2. Nc3 {[%clk 0:03:00.2]}
2... Nc6 {[%clk 0:03:00.7]} 3. e4 {[%clk 0:02:35]} 3... e5 {[%clk 0:03:00.3]} 4.
dxe5 {[%clk 0:02:34.8]} 4... Nxe5 {[%clk 0:03:01.2]} 5. f4 {[%clk 0:02:32.5]}
5... Ng6 {[%clk 0:03:01.3]} 6. e5 {[%clk 0:02:32.1]} 6... Ng8 {[%clk 0:03:01.7]}
7. Nf3 {[%clk 0:02:02.5]} 7... d6 {[%clk 0:03:01.9]} 8. Bc4 {[%clk 0:01:58.6]}
8... Be6 {[%clk 0:03:00.5]} 9. Bxe6 {[%clk 0:01:51.2]} 9... fxe6 {[%clk
0:03:01.4]} 10. exd6 {[%clk 0:01:51.3]} 10... Bxd6 {[%clk 0:03:00.3]} 11. Qe2
{[%clk 0:01:28.3]} 11... Qe7 {[%clk 0:03:00.1]} 12. g3 {[%clk 0:01:23.4]} 12...
Nf6 {[%clk 0:02:59.8]} 13. Bd2 {[%clk 0:01:23]} 13... O-O-O {[%clk 0:02:54.6]}
14. O-O-O {[%clk 0:01:22.9]} 14... e5 {[%clk 0:02:51.8]} 15. f5 {[%clk
0:01:20.6]} 15... Nf8 {[%clk 0:02:50.9]} 16. Ng5 {[%clk 0:01:15.7]} 16... N8d7
{[%clk 0:02:48.8]} 17. Nge4 {[%clk 0:00:59.2]} 17... h6 {[%clk 0:02:48.8]} 18.
Rhf1 {[%clk 0:00:50.2]} 18... Kb8 {[%clk 0:02:46.5]} 19. Kb1 {[%clk 0:00:45]}
19... a6 {[%clk 0:02:45.8]} 20. Bc1 {[%clk 0:00:44]} 20... Bb4 {[%clk
0:02:44.3]} 21. Nd5 {[%clk 0:00:33.4]} 21... Nxd5 {[%clk 0:02:43.7]} 22. Rxd5
{[%clk 0:00:34.3]} 22... Nf6 {[%clk 0:02:39.8]} 23. Rdd1 {[%clk 0:00:29.7]}
23... Ba5 {[%clk 0:02:32.8]} 24. c3 {[%clk 0:00:28.8]} 24... Qf7 {[%clk
0:02:26.2]} 25. g4 {[%clk 0:00:22.2]} 25... Rhe8 {[%clk 0:02:14.9]} 26. h3
{[%clk 0:00:20.7]} 26... Bb6 {[%clk 0:02:12.6]} 27. b3 {[%clk 0:00:12.6]} 27...
Nd5 {[%clk 0:02:10.5]} 28. Kc2 {[%clk 0:00:10.1]} 28... Qe7 {[%clk 0:02:09.7]}
29. Qf3 {[%clk 0:00:05.4]} 29... a5 {[%clk 0:02:07.4]} 30. a4 {[%clk 0:00:04.6]}
30... Qf7 {[%clk 0:02:06.2]} 31. Rd3 {[%clk 0:00:03.8]} 31... Nf6 {[%clk
0:02:04]} 32. Rfd1 {[%clk 0:00:03.6]} 32... Rxd3 {[%clk 0:02:02.7]} 33. Rxd3
{[%clk 0:00:03.7]} 33... Qe7 {[%clk 0:01:59.7]} 34. Rd1 {[%clk 0:00:02.4]} 34...
Rf8 {[%clk 0:01:54.7]} 35. Nxf6 {[%clk 0:00:02.6]} 35... Qxf6 {[%clk 0:01:54.6]}
36. Qe4 {[%clk 0:00:02.5]} 36... Re8 {[%clk 0:01:53.4]} 37. Rd3 {[%clk
0:00:02.7]} 37... Qh4 {[%clk 0:01:53.4]} 38. Bd2 {[%clk 0:00:03]} 38... Qf2
{[%clk 0:01:53.4]} 39. Rf3 {[%clk 0:00:02.3]} 39... Qg2 {[%clk 0:01:52.6]} 40.
Re3 {[%clk 0:00:01.6]} 40... Qh2 {[%clk 0:01:52.8]} 41. Rd3 {[%clk 0:00:01.6]}
41... Bc5 {[%clk 0:01:51.4]} 42. Kb1 {[%clk 0:00:01.8]} 42... Bd6 {[%clk
0:01:49.8]} 43. Kc2 {[%clk 0:00:01.8]} 43... Qf2 {[%clk 0:01:49.2]} 44. Qe3
{[%clk 0:00:01.4]} 44... Qg2 {[%clk 0:01:48.7]} 45. Qf3 {[%clk 0:00:01.5]} 45...
Qg1 {[%clk 0:01:45.8]} 46. Qe4 {[%clk 0:00:01.3]} 46... Qa1 {[%clk 0:01:45.7]}
47. Bc1 {[%clk 0:00:01.8]} 47... Qa2+ {[%clk 0:01:46.1]} 0-1

[Event "Late-Titled-Tuesday-Blitz-October-24-2023"]
[Site "Chess.com"]
[Date "2023.10.24"]
[Round "8"]
[White "Fandorine"]
[Black "LiemLe"]
[Result "0-1"]
[WhiteElo "2932"]
[BlackElo "2988"]
[TimeControl "180+1"]
[EndTime "15:25:09 PDT"]
[Termination "LiemLe won by resignation"]

1. e4 {[%clk 0:03:00.9]} 1... c6 {[%clk 0:03:00.5]} 2. d4 {[%clk 0:02:58.7]}
2... d5 {[%clk 0:03:01.4]} 3. e5 {[%clk 0:02:59.3]} 3... Bf5 {[%clk 0:03:01]} 4.
h4 {[%clk 0:02:59.1]} 4... h5 {[%clk 0:02:59.4]} 5. Bg5 {[%clk 0:02:55.5]} 5...
Qb6 {[%clk 0:02:55.3]} 6. Bd3 {[%clk 0:02:53.7]} 6... Qxd4 {[%clk 0:02:36.6]} 7.
Nf3 {[%clk 0:02:52.3]} 7... Qg4 {[%clk 0:02:33.7]} 8. Bxf5 {[%clk 0:02:52.2]}
8... Qxf5 {[%clk 0:02:34.6]} 9. O-O {[%clk 0:02:52.5]} 9... e6 {[%clk
0:02:18.4]} 10. c4 {[%clk 0:02:51.8]} 10... Be7 {[%clk 0:02:10.4]} 11. Qb3
{[%clk 0:02:49.7]} 11... b6 {[%clk 0:02:08.3]} 12. a4 {[%clk 0:02:27.9]} 12...
Bxg5 {[%clk 0:01:59.2]} 13. Nxg5 {[%clk 0:02:26.9]} 13... Ne7 {[%clk 0:01:56.5]}
14. a5 {[%clk 0:02:25.3]} 14... b5 {[%clk 0:01:29.9]} 15. cxb5 {[%clk
0:02:14.6]} 15... O-O {[%clk 0:01:29.8]} 16. Qb4 {[%clk 0:01:43]} 16... Ng6
{[%clk 0:01:23.4]} 17. Nc3 {[%clk 0:01:30.2]} 17... Nxe5 {[%clk 0:01:16]} 18. b6
{[%clk 0:01:05.7]} 18... axb6 {[%clk 0:01:02.7]} 19. axb6 {[%clk 0:01:05.6]}
19... Rxa1 {[%clk 0:01:02.6]} 20. Rxa1 {[%clk 0:01:06.2]} 20... Nd3 {[%clk
0:01:02.9]} 21. Qe7 {[%clk 0:00:09]} 21... Qxf2+ {[%clk 0:01:00.6]} 22. Kh1
{[%clk 0:00:09.9]} 22... Qxh4+ {[%clk 0:00:57.1]} 23. Kg1 {[%clk 0:00:10]} 23...
Qf2+ {[%clk 0:00:45.2]} 24. Kh1 {[%clk 0:00:08.9]} 24... Nf4 {[%clk 0:00:46.1]}
0-1

[Event "Late-Titled-Tuesday-Blitz-October-24-2023"]
[Site "Chess.com"]
[Date "2023.10.24"]
[Round "8"]
[White "ArtemDyachuk"]
[Black "JackRodgers"]
[Result "0-1"]
[WhiteElo "2623"]
[BlackElo "2533"]
[TimeControl "180+1"]
[EndTime "15:25:18 PDT"]
[Termination "JackRodgers won by checkmate"]

1. e4 {[%clk 0:03:00.9]} 1... c5 {[%clk 0:02:59.8]} 2. Nf3 {[%clk 0:03:00.3]}
2... g6 {[%clk 0:03:00]} 3. c4 {[%clk 0:02:59.5]} 3... Bg7 {[%clk 0:02:59.9]} 4.
d4 {[%clk 0:02:59.9]} 4... cxd4 {[%clk 0:03:00.8]} 5. Nxd4 {[%clk 0:03:00.7]}
5... Nc6 {[%clk 0:03:00.7]} 6. Be3 {[%clk 0:03:00.6]} 6... Nf6 {[%clk
0:03:00.8]} 7. Nc3 {[%clk 0:03:00.6]} 7... Ng4 {[%clk 0:03:00.9]} 8. Qxg4 {[%clk
0:02:59.9]} 8... Nxd4 {[%clk 0:03:01.1]} 9. Qd1 {[%clk 0:02:59.2]} 9... e5
{[%clk 0:03:01.5]} 10. Qd2 {[%clk 0:02:56.5]} 10... d6 {[%clk 0:03:00.5]} 11.
Bh6 {[%clk 0:02:55]} 11... O-O {[%clk 0:02:59.7]} 12. h4 {[%clk 0:02:50.2]}
12... Bxh6 {[%clk 0:02:59.1]} 13. Qxh6 {[%clk 0:02:49.2]} 13... Nc2+ {[%clk
0:02:51.8]} 14. Kd1 {[%clk 0:02:48.9]} 14... Nxa1 {[%clk 0:02:52.7]} 15. Nd5
{[%clk 0:02:47.4]} 15... f6 {[%clk 0:02:20.5]} 16. Bd3 {[%clk 0:02:43.8]} 16...
Be6 {[%clk 0:02:15.8]} 17. Nc3 {[%clk 0:02:43]} 17... Rc8 {[%clk 0:02:13.4]} 18.
b3 {[%clk 0:02:42.3]} 18... Qa5 {[%clk 0:02:09.1]} 19. Kd2 {[%clk 0:02:40.7]}
19... b5 {[%clk 0:02:04.7]} 20. Rxa1 {[%clk 0:02:21]} 20... bxc4 {[%clk
0:02:04.5]} 21. bxc4 {[%clk 0:02:20.8]} 21... Bxc4 {[%clk 0:02:03.9]} 22. Bxc4+
{[%clk 0:02:21.7]} 22... Rxc4 {[%clk 0:02:04.5]} 23. Rc1 {[%clk 0:02:21.5]}
23... Rfc8 {[%clk 0:02:03.7]} 24. Qe3 {[%clk 0:02:21]} 24... Qc5 {[%clk
0:02:00.8]} 25. Qh3 {[%clk 0:01:59.9]} 25... Qxf2+ {[%clk 0:01:58.6]} 26. Ne2
{[%clk 0:01:46.7]} 26... Rd4+ {[%clk 0:01:56.3]} 27. Qd3 {[%clk 0:01:42.6]}
27... Rxd3+ {[%clk 0:01:56.3]} 28. Kxd3 {[%clk 0:01:43.5]} 28... Rxc1 {[%clk
0:01:56.1]} 29. Nxc1 {[%clk 0:01:43.4]} 29... Qd4+ {[%clk 0:01:56.1]} 30. Kc2
{[%clk 0:01:43.4]} 30... Qxe4+ {[%clk 0:01:57]} 31. Kc3 {[%clk 0:01:39.9]} 31...
Qxg2 {[%clk 0:01:57.9]} 32. Nb3 {[%clk 0:01:39.2]} 32... Qxa2 {[%clk 0:01:57.7]}
33. h5 {[%clk 0:01:38.6]} 33... Qxb3+ {[%clk 0:01:57.9]} 34. Kxb3 {[%clk
0:01:37.9]} 34... gxh5 {[%clk 0:01:58.8]} 35. Kc4 {[%clk 0:01:35.6]} 35... h4
{[%clk 0:01:59.7]} 36. Kd5 {[%clk 0:01:35]} 36... h3 {[%clk 0:02:00.6]} 37. Kc6
{[%clk 0:01:35.1]} 37... h2 {[%clk 0:02:01.5]} 38. Kc7 {[%clk 0:01:35.2]} 38...
h1=Q {[%clk 0:02:02.1]} 39. Kb8 {[%clk 0:01:35.5]} 39... e4 {[%clk 0:02:03]} 40.
Kc7 {[%clk 0:01:35.6]} 40... e3 {[%clk 0:02:03.9]} 41. Kb8 {[%clk 0:01:35.8]}
41... e2 {[%clk 0:02:04.8]} 42. Kc7 {[%clk 0:01:35.6]} 42... f5 {[%clk
0:02:05.7]} 43. Kd8 {[%clk 0:01:35.3]} 43... f4 {[%clk 0:02:06.6]} 44. Kc7
{[%clk 0:01:35.6]} 44... f3 {[%clk 0:02:07.5]} 45. Kb8 {[%clk 0:01:35.5]} 45...
d5 {[%clk 0:02:08.4]} 46. Kc7 {[%clk 0:01:35.6]} 46... d4 {[%clk 0:02:09.3]} 47.
Kb8 {[%clk 0:01:35.5]} 47... d3 {[%clk 0:02:10.2]} 48. Kc7 {[%clk 0:01:35.8]}
48... d2 {[%clk 0:02:11.1]} 49. Kb8 {[%clk 0:01:35.7]} 49... f2 {[%clk 0:02:12]}
50. Kc7 {[%clk 0:01:35.5]} 50... h5 {[%clk 0:02:12.9]} 51. Kb8 {[%clk
0:01:35.4]} 51... h4 {[%clk 0:02:13.8]} 52. Kc7 {[%clk 0:01:35.3]} 52... h3
{[%clk 0:02:14.7]} 53. Kb8 {[%clk 0:01:35.4]} 53... h2 {[%clk 0:02:15.6]} 54.
Kc7 {[%clk 0:01:35.5]} 54... a5 {[%clk 0:02:16.5]} 55. Kb8 {[%clk 0:01:35.5]}
55... a4 {[%clk 0:02:17.4]} 56. Kc7 {[%clk 0:01:35.6]} 56... a3 {[%clk
0:02:18.3]} 57. Kb8 {[%clk 0:01:35.2]} 57... a2 {[%clk 0:02:19.2]} 58. Kc7
{[%clk 0:01:35.2]} 58... Qe4 {[%clk 0:02:20.1]} 59. Kb8 {[%clk 0:01:34.5]} 59...
Qc4 {[%clk 0:02:20.7]} 60. Kb7 {[%clk 0:01:33.5]} 60... d1=Q {[%clk 0:02:20.4]}
61. Kb8 {[%clk 0:01:33.2]} 61... Qdb3+ {[%clk 0:02:20.8]} 62. Ka7 {[%clk
0:00:06.7]} 62... a1=Q# {[%clk 0:02:21.7]} 0-1

[Event "Late-Titled-Tuesday-Blitz-October-24-2023"]
[Site "Chess.com"]
[Date "2023.10.24"]
[Round "8"]
[White "nochewycandy"]
[Black "IMRosen"]
[Result "1-0"]
[WhiteElo "2785"]
[BlackElo "2627"]
[TimeControl "180+1"]
[EndTime "15:25:25 PDT"]
[Termination "nochewycandy won by checkmate"]

1. e4 {[%clk 0:02:58.9]} 1... c5 {[%clk 0:02:59]} 2. Nf3 {[%clk 0:02:58.9]} 2...
e6 {[%clk 0:02:58.8]} 3. b3 {[%clk 0:02:58.2]} 3... b6 {[%clk 0:02:57.8]} 4. Bb2
{[%clk 0:02:58]} 4... Bb7 {[%clk 0:02:58.4]} 5. Nc3 {[%clk 0:02:58.6]} 5... a6
{[%clk 0:02:57.4]} 6. d4 {[%clk 0:02:56.4]} 6... cxd4 {[%clk 0:02:58.3]} 7. Qxd4
{[%clk 0:02:56.5]} 7... Qc7 {[%clk 0:02:59]} 8. O-O-O {[%clk 0:02:54]} 8... Nc6
{[%clk 0:02:59]} 9. Qd2 {[%clk 0:02:51.2]} 9... Nge7 {[%clk 0:02:50.9]} 10. Kb1
{[%clk 0:02:46.7]} 10... Ng6 {[%clk 0:02:48.3]} 11. h4 {[%clk 0:02:43.4]} 11...
h6 {[%clk 0:02:32.7]} 12. Be2 {[%clk 0:02:29.7]} 12... Rc8 {[%clk 0:02:32.2]}
13. h5 {[%clk 0:02:18.1]} 13... Nge5 {[%clk 0:02:31.2]} 14. Nxe5 {[%clk
0:02:17.5]} 14... Nxe5 {[%clk 0:02:32.1]} 15. f4 {[%clk 0:02:14.7]} 15... Bb4
{[%clk 0:02:31.7]} 16. Nb5 {[%clk 0:02:07.9]} 16... axb5 {[%clk 0:02:11.6]} 17.
Qxb4 {[%clk 0:02:06.8]} 17... Qxc2+ {[%clk 0:02:07.8]} 18. Ka1 {[%clk
0:02:07.3]} 18... Nc6 {[%clk 0:01:45.8]} 19. Qd6 {[%clk 0:01:58.7]} 19... Na5
{[%clk 0:00:50.7]} 20. Rc1 {[%clk 0:00:43.2]} 20... Nxb3+ {[%clk 0:00:14.5]} 21.
axb3 {[%clk 0:00:44.1]} 21... Ra8+ {[%clk 0:00:14.6]} 22. Ba3 {[%clk 0:00:44.8]}
22... Rxa3+ {[%clk 0:00:12.3]} 23. Qxa3 {[%clk 0:00:45.6]} 23... Qxe2 {[%clk
0:00:12.7]} 24. Rhe1 {[%clk 0:00:40.7]} 24... Qxh5 {[%clk 0:00:08.5]} 25. Rc7
{[%clk 0:00:35.7]} 25... Bc6 {[%clk 0:00:04.9]} 26. Rc8# {[%clk 0:00:35.5]} 1-0